fUSD/lending_fUSD_20250608
["ID","MTS","AMOUNT","RATE_DAILY","PERIOD"]
[365036556,1749420548359,-500.0,0.00017748,2]
[365036557,1749420548385,-500.0,0.00017748,2]
[365036558,1749420548411,-197.0782278,0.00017748,2]
[365036559,1749420548461,-302.9217722,0.00017748,2]
[365036560,1749420548493,-500.0,0.00017748,2]
[365036561,1749420548520,-500.0,0.00017748,2]
[365036562,1749420548546,-500.0,0.00017748,2]
[365036563,1749420548570,-500.0,0.00017748,2]
[365036564,1749420548594,-500.0,0.00017748,2]
[365036565,1749420548617,-500.0,0.00017748,2]
[365036566,1749420548640,-500.0,0.00017748,2]
[365036567,1749420548664,-500.0,0.00017748,2]
[365036568,1749420548687,-151.0,0.00017748,2]
[365036569,1749420548712,-151.0,0.00017748,2]
[365036570,1749420548739,-151.0,0.00017748,2]
[365036571,1749420548762,-516.1892278,0.00017749,2]
[365036572,1749420548796,-1918.55466244,0.00017749,2]
[365036573,1749420548824,-208.0,0.0001779,2]
[365036574,1749420548849,-2524.82941417,0.00017804,2]
[365036575,1749420548874,-150.0,0.00017807,2]
[365036576,1749420548897,-470.72692339,0.00017813,2]
[365036577,1749420549113,-165.27307661,0.00017813,2]
[365036578,1749420549138,-852.0,0.00017813,2]
[365036579,1749420549165,-922.88,0.00017813,2]
[365036580,1749420549194,-150.0,0.00017817,2]
[365036581,1749420549220,-150.0,0.00017825,2]
[365036582,1749420549247,-150.0,0.00017842,2]
[365036583,1749420549275,-150.0,0.00017848,2]
[365036584,1749420549302,-150.0,0.00017849,2]
[365036585,1749420549329,-302.58058727,0.00017859,2]
[365036586,1749420549356,-150.0,0.00017864,2]
[365036587,1749420549384,-150.0,0.00017877,2]
[365036588,1749420549411,-150.0,0.00017883,2]
[365036589,1749420549440,-546.87887467,0.0001789,2]
[365036590,1749420549467,-150.0,0.00017894,2]
[365036591,1749420549493,-150.48,0.000179,2]
[365036592,1749420549519,-982.01846145,0.000179,2]
[365036593,1749420549549,-181.16153855,0.000179,2]
[365036594,1749420549572,-300.0,0.000179,2]
[365036595,1749420549598,-708.74,0.000179,2]
[365036596,1749420549621,-1163.18,0.000179,2]
[365036597,1749420549645,-708.6,0.000179,2]
[365036598,1749420549668,-150.39,0.000179,2]
[365036599,1749420549690,-300.39,0.000179,2]
[365036600,1749420549713,-341.14,0.000179,2]
[365036601,1749420549738,-150.0,0.000179,2]
[365036602,1749420549766,-1268.50946145,0.000179,2]
[365036603,1749420549808,-5272.111,0.000179,2]
[365036604,1749420549842,-1215.81167575,0.000179,2]
[365036605,1749420549865,-299.20156313,0.000179,2]
[365036606,1749420549889,-150.0,0.00017902,2]
[365036607,1749420549913,-500.0,0.00017905,2]
[365036608,1749420549936,-500.0,0.00017905,2]
[365036609,1749420549960,-497.18319542,0.00017905,2]
[365036610,1749420549984,-500.0,0.00017905,2]
[365036611,1749420550010,-500.0,0.00017905,2]
[365036612,1749420550034,-500.0,0.00017905,2]
[365036613,1749420550057,-500.0,0.00017905,2]
[365036614,1749420550080,-109.9145657,0.00017905,2]
[365036615,1749420550116,-190.0854343,0.00017905,2]
[365036616,1749420550139,-500.0,0.00017905,2]
[365036617,1749420550163,-500.0,0.00017905,2]
[365036618,1749420550185,-366.3863196,0.00017905,2]
[365036619,1749420550209,-500.0,0.00017905,2]
[365036620,1749420550234,-500.0,0.00017905,2]
[365036621,1749420550257,-500.0,0.00017905,2]
[365036622,1749420550279,-500.0,0.00017905,2]
[365036623,1749420550303,-500.0,0.00017905,2]
[365036624,1749420550329,-500.0,0.00017905,2]
[365036625,1749420550353,-500.0,0.00017905,2]
[365036626,1749420550376,-215.6392461,0.00017905,2]
[365036627,1749420550408,-284.3607539,0.00017905,2]
[365036628,1749420550433,-500.0,0.00017905,2]
[365036629,1749420550456,-500.0,0.00017905,2]
[365036630,1749420550481,-500.0,0.00017905,2]
[365036631,1749420550504,-500.0,0.00017905,2]
[365036632,1749420550530,-500.0,0.00017905,2]
[365036633,1749420550557,-500.0,0.00017905,2]
[365036634,1749420550581,-500.0,0.00017905,2]
[365036635,1749420550606,-500.0,0.00017905,2]
[365036636,1749420550632,-500.0,0.00017905,2]
[365036637,1749420550655,-487.7502461,0.00017905,2]
[365036638,1749420550709,-12.2497539,0.00017905,2]
[365036639,1749420550734,-500.0,0.00017905,2]
[365036640,1749420550758,-500.0,0.00017905,2]
[365036641,1749420550784,-500.0,0.00017905,2]
[365036642,1749420550811,-500.0,0.00017905,2]
[365036643,1749420550835,-500.0,0.00017905,2]
[365036644,1749420550861,-500.0,0.00017905,2]
[365036645,1749420550886,-176.98006749,0.00017905,2]
[365036646,1749420550912,-500.0,0.00017905,2]
[365036647,1749420550937,-262.0304749,0.00017905,2]
[365036648,1749420550960,-500.0,0.00017905,2]
[365036649,1749420550985,-500.0,0.00017905,2]
[365036650,1749420551013,-320.85070371,0.00017905,2]
[365036651,1749420551056,-179.14929629,0.00017905,2]
[365036652,1749420551084,-500.0,0.00017905,2]
[365036653,1749420551111,-500.0,0.00017905,2]
[365036654,1749420551137,-500.0,0.00017905,2]
[365036655,1749420551166,-500.0,0.00017905,2]
[365036656,1749420551196,-500.0,0.00017905,2]
[365036657,1749420551223,-500.0,0.00017905,2]
[365036658,1749420551250,-500.0,0.00017905,2]
[365036659,1749420551274,-500.0,0.00017905,2]
[365036660,1749420551298,-500.0,0.00017905,2]
[365036661,1749420551324,-500.0,0.00017905,2]
[365036662,1749420551349,-92.96170371,0.00017905,2]
[365036663,1749420551400,-407.03829629,0.00017905,2]
[365036664,1749420551435,-500.0,0.00017905,2]
[365036665,1749420551458,-500.0,0.00017905,2]
[365036666,1749420551483,-500.0,0.00017905,2]
[365036667,1749420551508,-500.0,0.00017905,2]
[365036668,1749420551531,-500.0,0.00017905,2]
[365036669,1749420551566,-500.0,0.00017905,2]
[365036670,1749420551593,-500.0,0.00017905,2]
[365036671,1749420551617,-500.0,0.00017905,2]
[365036672,1749420551642,-500.0,0.00017905,2]
[365036673,1749420551671,-365.07270371,0.00017905,2]
[365036674,1749420551722,-134.92729629,0.00017905,2]
[365036675,1749420551752,-500.0,0.00017905,2]
[365036676,1749420551777,-500.0,0.00017905,2]
[365036677,1749420551801,-500.0,0.00017905,2]
[365036678,1749420551825,-500.0,0.00017905,2]
[365036679,1749420551850,-500.0,0.00017905,2]
[365036680,1749420551874,-500.0,0.00017905,2]
[365036681,1749420551898,-500.0,0.00017905,2]
[365036682,1749420551925,-500.0,0.00017905,2]
[365036683,1749420551950,-500.0,0.00017905,2]
[365036684,1749420551976,-500.0,0.00017905,2]
[365036685,1749420552002,-137.18370371,0.00017905,2]
[365036686,1749420552040,-62.39022832,0.00017905,2]
[365036687,1749420552066,-500.0,0.00017905,2]
[365036688,1749420552312,-500.0,0.00017905,2]
[365036689,1749420552340,-379.049,0.00017906,2]
[365036690,1749420552365,-150.0,0.00017909,2]
[365036691,1749420552392,-150.0,0.00017913,2]
[365036692,1749420552419,-150.0,0.00017917,2]
[365036693,1749420552447,-150.0,0.00017917,2]
[365036694,1749420552474,-150.0,0.00017926,2]
[365036695,1749420552502,-150.0,0.00017934,2]
[365036696,1749420552528,-200.0,0.00017939,2]
[365036697,1749420552554,-150.0,0.00017945,2]
[365036698,1749420552578,-150.0,0.0001795,2]
[365036699,1749420552608,-150.0,0.0001795,2]
[365036700,1749420552637,-150.0,0.00017963,2]
[365036701,1749420552662,-150.0,0.00017966,2]
[365036702,1749420552686,-1000.0,0.0001797,2]
[365036703,1749420552709,-980.67177168,0.0001797,2]
[365036704,1749420552739,-19.32822832,0.0001797,2]
[365036705,1749420552762,-1000.0,0.0001797,2]
[365036706,1749420552785,-1000.0,0.0001797,2]
[365036707,1749420552808,-1000.0,0.0001797,2]
[365036708,1749420552832,-1000.0,0.0001797,2]
[365036709,1749420552855,-1252.78277168,0.0001797,2]
[365036710,1749420552895,-115.26059516,0.0001797,2]
[365036711,1749420552919,-5156.85040484,0.00017974,2]
[365036712,1749420552958,-773.98992619,0.00017974,2]
[365036713,1749420552981,-1000.0,0.00017982,2]
[365036714,1749420553006,-3498.12107381,0.00017984,2]
[365036715,1749420553050,-5272.111,0.00017984,2]
[365036716,1749420553081,-5272.111,0.00017984,2]
[365036717,1749420553117,-5272.111,0.00017984,2]
[365036718,1749420553148,-4122.63192619,0.00017984,2]
[365036719,1749420553173,-500.0,0.00017985,2]
[365036720,1749420553196,-173.47046982,0.00017985,2]
[365036721,1749420553221,-476.00860399,0.00017985,2]
[365036722,1749420553253,-23.99139601,0.00017985,2]
[365036723,1749420553278,-500.0,0.00017985,2]
[365036724,1749420553302,-504.36765303,0.00017985,2]
[365036725,1749420553326,-4243.75195096,0.00017986,2]
[365036726,1749420553361,-5272.111,0.00017986,2]
[365036727,1749420553390,-5272.111,0.00017986,2]
[365036728,1749420553426,-5155.43948435,0.00017986,2]
[365036729,1749420553450,-116.67151565,0.00017986,2]
[365036730,1749420553479,-77.13666308,0.00017986,2]
[365036731,1749420553504,-2500.0,0.00017986,2]
[365036732,1749420553531,-150.0,0.00017987,2]
[365036733,1749420553556,-299.20156299,0.00017991,2]
[365036734,1749420553581,-150.0,0.00017998,2]
[365036735,1749420553802,1163.18,0.000176,2]
[365036736,1749420554463,150.0,0.000176,2]
[365036738,1749420570638,782.59277393,0.00018,2]
[365036743,1749420631508,-303.51135824,0.00017104,2]
[365036745,1749420631622,-64.02864176,0.00017104,2]
[365036746,1749420631632,-166.36,0.00017595,2]
[365036747,1749420631641,-250.0,0.00017659,2]
[365036748,1749420631651,-158.334503,0.00017722,2]
[365036749,1749420631660,-1291.04,0.00017785,2]
[365036750,1749420631670,-1291.01,0.00017807,2]
[365036751,1749420631679,-1291.01,0.00017894,2]
[365036752,1749420631689,-4081.0,0.00017918,2]
[365036753,1749420631698,-7017.0,0.00017918,2]
[365036754,1749420631707,-155.0,0.00017918,2]
[365036755,1749420631717,-1291.01,0.00017939,2]
[365036756,1749420631726,-1291.01,0.00017973,2]
[365036757,1749420631736,-1200.0,0.00017999,2]
[365036758,1749420631745,-768.0,0.00018,2]
[365036759,1749420631755,-237.0,0.00018,2]
[365036760,1749420631773,-500.0,0.00018,2]
[365036761,1749420631785,-376.0,0.00018,2]
[365036762,1749420631795,-305.18,0.00018,2]
[365036763,1749420631804,-7756.43213708,0.00018003,2]
[365036765,1749420631814,-150.0,0.00018014,2]
[365036766,1749420631824,-150.0,0.00018015,2]
[365036768,1749420631833,-150.0,0.00018017,2]
[365036770,1749420631842,-150.0,0.00018017,2]
[365036772,1749420631852,-150.0,0.00018019,2]
[365036774,1749420631862,-150.0,0.0001802,2]
[365036776,1749420631871,-150.0,0.00018026,2]
[365036778,1749420631881,-150.0,0.00018026,2]
[365036780,1749420631891,-150.0,0.00018036,2]
[365036782,1749420631900,-200.0,0.00018042,2]
[365036784,1749420631910,-1000.0,0.00018045,2]
[365036786,1749420631920,-150.0,0.00018048,2]
[365036788,1749420631930,-150.0,0.0001805,2]
[365036790,1749420631940,-150.0,0.00018052,2]
[365036792,1749420631950,-1291.01,0.00018056,2]
[365036794,1749420631960,-150.0,0.00018057,2]
[365036796,1749420631969,-150.0,0.00018057,2]
[365036798,1749420631980,-500.0,0.00018073,2]
[365036800,1749420631989,-500.0,0.00018073,2]
[365036802,1749420631999,-500.0,0.00018073,2]
[365036804,1749420632009,-500.0,0.00018073,2]
[365036806,1749420632019,-500.0,0.00018073,2]
[365036808,1749420632029,-500.0,0.00018073,2]
[365036810,1749420632039,-200.0,0.00018076,2]
[365036811,1749420632048,-4559.5132966,0.00018076,2]
[365036814,1749420632062,-22836.3319923,0.00018076,2]
[365036816,1749420632072,-150.0,0.00018082,2]
[365036818,1749420632082,-500.0,0.00018082,2]
[365036820,1749420632092,-200.0,0.00018084,2]
[365036822,1749420632102,-34019.89185434,0.00018085,2]
[365036824,1749420632112,-979.73,0.00018085,2]
[365036827,1749420632122,-480.0,0.00018085,2]
[365036830,1749420632132,-480.0,0.00018085,2]
[365036832,1749420632141,-151.0,0.00018085,2]
[365036834,1749420632151,-151.0,0.00018085,2]
[365036836,1749420632161,-151.0,0.00018085,2]
[365036838,1749420632171,-151.0,0.00018085,2]
[365036840,1749420632181,-964.33,0.00018085,2]
[365036842,1749420632190,-151.0,0.00018085,2]
[365036844,1749420632199,-151.0,0.00018085,2]
[365036846,1749420632209,-480.0,0.00018085,2]
[365036847,1749420632218,-480.0,0.00018085,2]
[365036849,1749420632227,-480.0,0.00018085,2]
[365036851,1749420632236,-1390.97,0.00018085,2]
[365036852,1749420632245,-1708.3367551,0.00018086,2]
[365036853,1749420632254,-832.39349,0.00018086,2]
[365036854,1749420632263,-509.4453187,0.00018088,2]
[365036855,1749420632272,-193.80817868,0.0001809,2]
[365036856,1749420632282,-299.20156299,0.00018097,2]
[365036857,1749420632291,-200.0,0.000181,2]
[365036858,1749420632302,-210.16718878,0.000181,2]
[365036859,1749420632311,-775.89,0.000181,2]
[365036860,1749420632321,-1291.01,0.000181,2]
[365036861,1749420632330,-7756.43213708,0.00018107,2]
[365036862,1749420632340,-500.0,0.00018107,2]
[365036863,1749420632350,-150.0,0.00018109,2]
[365036864,1749420632359,-500.0,0.00018109,2]
[365036866,1749420632369,-154.06951413,0.00018119,2]
[365036868,1749420632379,-500.0,0.00018134,2]
[365036870,1749420632388,-150.0,0.00018137,2]
[365036872,1749420632398,-500.0,0.00018137,2]
[365036874,1749420632407,-235.81,0.00018155,2]
[365036876,1749420632419,-500.0,0.00018162,2]
[365036877,1749420632434,-672.91796395,0.00018164,2]
[365036879,1749420632449,-258.83402,0.00018164,2]
[365036881,1749420632459,-151.0,0.00018164,2]
[365036883,1749420632468,-151.0,0.00018164,2]
[365036884,1749420632478,-150.0,0.00018164,2]
[365036886,1749420632487,-500.0,0.00018164,2]
[365036888,1749420632496,-480.0,0.00018165,2]
[365036890,1749420632506,-480.0,0.00018165,2]
[365036892,1749420632516,-1396.94,0.00018165,2]
[365036894,1749420632525,-177.86033671,0.00018165,2]
[365036896,1749420632535,-480.0,0.00018165,2]
[365036898,1749420632545,-832.39349,0.00018165,2]
[365036900,1749420632555,-6273.64,0.00018165,2]
[365036902,1749420632566,-480.0,0.00018165,2]
[365036904,1749420632575,-1338.26,0.00018165,2]
[365036906,1749420632585,-15380.32,0.00018165,2]
[365036908,1749420632595,-176.421336,0.00018165,2]
[365036910,1749420632604,-480.0,0.00018165,2]
[365036912,1749420632614,-480.0,0.00018165,2]
[365036914,1749420632624,-151.0,0.00018165,2]
[365036916,1749420632633,-480.0,0.00018165,2]
[365036918,1749420632643,-151.0,0.00018165,2]
[365036920,1749420632653,-483.57,0.00018165,2]
[365036922,1749420632663,-151.0,0.00018166,2]
[365036924,1749420632673,-500.0,0.00018173,2]
[365036926,1749420632683,-500.0,0.00018173,2]
[365036928,1749420632692,-15399.87826846,0.00018173,2]
[365036930,1749420632702,-548.4914614,0.00018186,2]
[365036932,1749420632711,-4158.64462077,0.00018189,2]
[365036934,1749420632721,-500.0,0.00018189,2]
[365036936,1749420632732,-185.28261602,0.00018192,2]
[365036938,1749420632742,-500.0,0.00018192,2]
[365036940,1749420632751,-193.80817868,0.00018194,2]
[365036942,1749420632762,-1721.9978732,0.00018194,2]
[365036944,1749420632771,-208.78,0.00018198,2]
[365036946,1749420632782,-480.0,0.00018198,2]
[365036948,1749420632792,-406.0,0.00018198,2]
[365036950,1749420632802,-500.0,0.00018198,2]
[365036952,1749420632811,-480.0,0.00018198,2]
[365036954,1749420632821,-480.0,0.00018198,2]
[365036956,1749420632831,-151.0,0.00018198,2]
[365036958,1749420632840,-961.26,0.00018198,2]
[365036960,1749420632849,-480.0,0.00018198,2]
[365036962,1749420632859,-500.0,0.00018198,2]
[365036964,1749420632869,-544.32,0.00018198,2]
[365036966,1749420632879,-480.0,0.00018198,2]
[365036968,1749420632889,-480.0,0.00018198,2]
[365036970,1749420632899,-480.0,0.00018198,2]
[365036972,1749420632908,-889.8,0.00018198,2]
[365036974,1749420632919,-480.0,0.00018198,2]
[365036976,1749420632928,-480.0,0.00018198,2]
[365036978,1749420632939,-538.66,0.00018198,2]
[365036980,1749420632948,-832.39349,0.00018198,2]
[365036982,1749420632959,-670.51,0.00018198,2]
[365036984,1749420632969,-832.39349,0.00018198,2]
[365036986,1749420632979,-480.0,0.00018198,2]
[365036988,1749420632989,-480.0,0.00018198,2]
[365036990,1749420632999,-151.0,0.00018198,2]
[365036992,1749420633008,-304.917741,0.00018198,2]
[365036994,1749420633018,-480.0,0.00018198,2]
[365036996,1749420633029,-480.0,0.00018198,2]
[365036998,1749420633039,-480.0,0.00018198,2]
[365037000,1749420633050,-480.0,0.00018198,2]
[365037001,1749420633060,-480.0,0.00018198,2]
[365037003,1749420633070,-300.745362,0.00018198,2]
[365037005,1749420633081,-1021.73,0.00018198,2]
[365037007,1749420633091,-480.0,0.00018198,2]
[365037009,1749420633102,-19943.41343525,0.00018199,2]
[365037011,1749420633112,-1000.0,0.000182,2]
[365037013,1749420633122,-299.20156299,0.00018202,2]
[365037015,1749420633132,-7756.43213708,0.0001821,2]
[365037017,1749420633145,-101.34832712,0.00018217,2]
[365037024,1749420633211,-208.3436841,0.00018217,2]
[365037026,1749420633221,-500.0,0.00018219,2]
[365037028,1749420633232,-151.0,0.00018219,2]
[365037030,1749420633242,-11034.23005354,0.0001822,2]
[365037032,1749420633252,-5421.73805501,0.00018239,2]
[365037034,1749420633262,-500.0,0.00018246,2]
[365037036,1749420633272,-979.73,0.00018249,2]
[365037038,1749420633282,-480.0,0.00018249,2]
[365037040,1749420633292,-480.0,0.00018249,2]
[365037042,1749420633301,-964.33,0.00018249,2]
[365037044,1749420633311,-480.0,0.00018249,2]
[365037046,1749420633321,-480.0,0.00018249,2]
[365037048,1749420633331,-1390.97,0.00018249,2]
[365037050,1749420633342,-22116.5795798,0.00018261,2]
[365037051,1749420633352,-500.0,0.00018273,2]
[365037054,1749420633362,-521.95666689,0.00018273,2]
[365037055,1749420633373,-704.0,0.00018273,2]
[365037057,1749420633382,-500.0,0.00018273,2]
[365037059,1749420633392,-500.0,0.00018273,2]
[365037061,1749420633401,-500.0,0.00018273,2]
[365037063,1749420633411,-500.0,0.00018273,2]
[365037065,1749420633421,-500.0,0.00018273,2]
[365037067,1749420633431,-500.0,0.00018273,2]
[365037069,1749420633445,-500.0,0.00018273,2]
[365037071,1749420633455,-500.0,0.00018273,2]
[365037073,1749420633465,-500.0,0.00018273,2]
[365037075,1749420633477,-500.0,0.00018273,2]
[365037077,1749420633486,-500.0,0.00018273,2]
[365037079,1749420633496,-500.0,0.00018273,2]
[365037081,1749420633506,-500.0,0.00018273,2]
[365037083,1749420633518,-500.0,0.00018273,2]
[365037085,1749420633528,-500.0,0.00018273,2]
[365037087,1749420633537,-500.0,0.00018273,2]
[365037089,1749420633547,-500.0,0.00018273,2]
[365037091,1749420633557,-500.0,0.00018273,2]
[365037093,1749420633566,-500.0,0.00018273,2]
[365037095,1749420633576,-500.0,0.00018273,2]
[365037097,1749420633585,-500.0,0.00018273,2]
[365037121,1749420633818,-500.0,0.00018273,2]
[365037123,1749420633832,-500.0,0.00018273,2]
[365037125,1749420633843,-500.0,0.00018273,2]
[365037127,1749420633852,-500.0,0.00018273,2]
[365037129,1749420633862,-500.0,0.00018273,2]
[365037131,1749420633871,-500.0,0.00018273,2]
[365037133,1749420633881,-500.0,0.00018273,2]
[365037135,1749420633892,-500.0,0.00018273,2]
[365037137,1749420633901,-500.0,0.00018273,2]
[365037139,1749420633910,-500.0,0.00018273,2]
[365037141,1749420633920,-500.0,0.00018273,2]
[365037143,1749420633931,-500.0,0.00018273,2]
[365037145,1749420633941,-500.0,0.00018273,2]
[365037147,1749420633950,-500.0,0.00018273,2]
[365037149,1749420633963,-500.0,0.00018273,2]
[365037151,1749420633972,-500.0,0.00018273,2]
[365037152,1749420633982,-500.0,0.00018273,2]
[365037153,1749420633992,-500.0,0.00018273,2]
[365037154,1749420634001,-500.0,0.00018273,2]
[365037155,1749420634010,-500.0,0.00018273,2]
[365037156,1749420634019,-500.0,0.00018273,2]
[365037157,1749420634028,-500.0,0.00018273,2]
[365037158,1749420634038,-500.0,0.00018273,2]
[365037159,1749420634047,-500.0,0.00018273,2]
[365037160,1749420634057,-500.0,0.00018273,2]
[365037161,1749420634067,-500.0,0.00018273,2]
[365037162,1749420634076,-500.0,0.00018273,2]
[365037163,1749420634085,-500.0,0.00018273,2]
[365037164,1749420634094,-500.0,0.00018273,2]
[365037165,1749420634104,-500.0,0.00018273,2]
[365037167,1749420634113,-500.0,0.00018273,2]
[365037169,1749420634122,-500.0,0.00018273,2]
[365037171,1749420634131,-500.0,0.00018273,2]
[365037173,1749420634140,-500.0,0.00018273,2]
[365037175,1749420634149,-500.0,0.00018273,2]
[365037176,1749420634159,-500.0,0.00018273,2]
[365037178,1749420634168,-500.0,0.00018273,2]
[365037180,1749420634178,-500.0,0.00018273,2]
[365037182,1749420634187,-500.0,0.00018273,2]
[365037184,1749420634198,-500.0,0.00018273,2]
[365037186,1749420634207,-500.0,0.00018273,2]
[365037188,1749420634217,-432.09252551,0.00018273,2]
[365037191,1749420634231,-67.90747449,0.00018273,2]
[365037193,1749420634241,-500.0,0.00018273,2]
[365037195,1749420634251,-500.0,0.00018273,2]
[365037197,1749420634260,-500.0,0.00018273,2]
[365037199,1749420634270,-500.0,0.00018273,2]
[365037200,1749420634280,-500.0,0.00018273,2]
[365037202,1749420634289,-500.0,0.00018273,2]
[365037204,1749420634299,-500.0,0.00018273,2]
[365037206,1749420634308,-500.0,0.00018273,2]
[365037208,1749420634318,-500.0,0.00018273,2]
[365037210,1749420634328,-500.0,0.00018273,2]
[365037212,1749420634337,-500.0,0.00018273,2]
[365037214,1749420634346,-500.0,0.00018273,2]
[365037216,1749420634356,-500.0,0.00018273,2]
[365037218,1749420634365,-500.0,0.00018273,2]
[365037220,1749420634374,-500.0,0.00018273,2]
[365037222,1749420634384,-500.0,0.00018273,2]
[365037224,1749420634393,-967.0,0.00018273,2]
[365037226,1749420634403,-500.0,0.00018273,2]
[365037228,1749420634412,-500.0,0.00018273,2]
[365037230,1749420634422,-500.0,0.00018273,2]
[365037232,1749420634431,-500.0,0.00018273,2]
[365037234,1749420634444,-500.0,0.00018273,2]
[365037236,1749420634453,-500.0,0.00018273,2]
[365037238,1749420634463,-500.0,0.00018273,2]
[365037240,1749420634472,-500.0,0.00018273,2]
[365037241,1749420634492,-500.0,0.00018273,2]
[365037243,1749420634503,-500.0,0.00018273,2]
[365037245,1749420634512,-500.0,0.00018273,2]
[365037247,1749420634524,-500.0,0.00018273,2]
[365037249,1749420634534,-500.0,0.00018273,2]
[365037251,1749420634543,-500.0,0.00018273,2]
[365037253,1749420634552,-500.0,0.00018273,2]
[365037255,1749420634562,-500.0,0.00018273,2]
[365037257,1749420634572,-500.0,0.00018273,2]
[365037259,1749420634581,-500.0,0.00018273,2]
[365037261,1749420634591,-500.0,0.00018273,2]
[365037263,1749420634601,-500.0,0.00018273,2]
[365037265,1749420634611,-500.0,0.00018273,2]
[365037267,1749420634621,-500.0,0.00018273,2]
[365037269,1749420634630,-500.0,0.00018273,2]
[365037271,1749420634639,-777.0,0.00018273,2]
[365037273,1749420634649,-238.03262,0.00018273,2]
[365037275,1749420634659,-150.0,0.00018273,2]
[365037277,1749420634668,-450.0,0.00018273,2]
[365037279,1749420634678,-450.0,0.00018273,2]
[365037281,1749420634689,-450.0,0.00018273,2]
[365037283,1749420634698,-450.0,0.00018273,2]
[365037285,1749420634707,-322.120957,0.00018273,2]
[365037287,1749420634717,-832.39349,0.00018273,2]
[365037289,1749420634726,-832.39349,0.00018273,2]
[365037291,1749420634736,-151.0,0.00018273,2]
[365037292,1749420634748,-500.0,0.00018274,2]
[365037294,1749420634759,-193.80817868,0.00018297,2]
[365037296,1749420634768,-163.65,0.000183,2]
[365037298,1749420634778,-163.65,0.000183,2]
[365037300,1749420634788,-163.65,0.000183,2]
[365037302,1749420634797,-1000.0,0.000183,2]
[365037304,1749420634807,-500.0,0.00018301,2]
[365037306,1749420634817,-151.0,0.00018305,2]
[365037308,1749420634827,-299.20156299,0.00018308,2]
[365037310,1749420634836,-832.39349,0.0001831,2]
[365037312,1749420634847,-832.39349,0.0001831,2]
[365037314,1749420634857,-7756.43213708,0.00018314,2]
[365037316,1749420634867,-296.12074686,0.00018319,6]
[365037318,1749420634877,-500.0,0.00018329,2]
[365037320,1749420634886,-150.0,0.00018329,2]
[365037322,1749420634895,-154.50231105,0.00018329,2]
[365037324,1749420634904,-195.98197426,0.00018329,2]
[365037326,1749420634913,-150.0,0.00018329,2]
[365037328,1749420634923,-150.0,0.00018329,2]
[365037330,1749420634932,-150.0,0.00018329,2]
[365037332,1749420634942,-150.0,0.00018329,2]
[365037334,1749420634951,-150.0,0.00018329,2]
[365037336,1749420634961,-150.0,0.00018329,2]
[365037338,1749420634971,-150.0,0.00018329,2]
[365037340,1749420634981,-150.0,0.00018329,2]
[365037342,1749420634990,-150.0,0.00018329,2]
[365037344,1749420635001,-65674.9257829,0.00018329,2]
[365037346,1749420635013,-43393.69422871,0.00018329,2]
[365037348,1749420635023,-263.86276561,0.00018329,2]
[365037350,1749420635033,-480.0,0.00018329,2]
[365037352,1749420635043,-480.0,0.00018329,2]